fUST/lending_fUST_20260518
["ID","MTS","AMOUNT","RATE_DAILY","PERIOD"]
[422544214,1779048644000,-618.95,0.00011232,2]
[422544220,1779048644000,-500.0,0.00011232,2]
[422544186,1779048644000,-500.0,0.00011232,2]
[422544217,1779048644000,-4919.58,0.00011232,2]
[422544219,1779048644000,-500.0,0.00011232,2]
[422544213,1779048644000,-500.0,0.00011232,2]
[422544223,1779048644000,-500.0,0.00011232,2]
[422544222,1779048644000,-500.0,0.00011232,2]
[422544203,1779048644000,-810.16,0.00011232,2]
[422544201,1779048644000,-259.2809966,0.00011232,2]
[422544178,1779048644000,-500.0,0.00011232,2]
[422544200,1779048644000,-500.0,0.00011232,2]
[422544224,1779048644000,-578.19,0.00011232,2]
[422544168,1779048644000,-743.96,0.00011232,2]
[422544161,1779048644000,-651.45,0.00011232,2]
[422544169,1779048644000,-500.0,0.00011232,2]
[422544162,1779048644000,-636.89,0.00011232,2]
[422544164,1779048644000,-500.0,0.00011232,2]
[422544163,1779048644000,-500.0,0.00011232,2]
[422544166,1779048644000,-500.0,0.00011232,2]
[422544167,1779048644000,-500.0,0.00011232,2]
[422544165,1779048644000,-500.0,0.00011232,2]
[422544170,1779048644000,-503.79,0.00011232,2]
[422544173,1779048644000,-647.97,0.00011232,2]
[422544181,1779048644000,-500.0,0.00011232,2]
[422544187,1779048644000,-500.0,0.00011232,2]
[422544171,1779048644000,-670.13,0.00011232,2]
[422544172,1779048644000,-500.0,0.00011232,2]
[422544175,1779048644000,-724.46,0.00011232,2]
[422544176,1779048644000,-500.0,0.00011232,2]
[422544179,1779048644000,-1180.66,0.00011232,2]
[422544183,1779048644000,-500.0,0.00011232,2]
[422544182,1779048644000,-500.0,0.00011232,2]
[422544177,1779048644000,-500.0,0.00011232,2]
[422544180,1779048644000,-681.97,0.00011232,2]
[422544185,1779048644000,-1617.83,0.00011232,2]
[422544196,1779048644000,-531.6,0.00011232,2]
[422544198,1779048644000,-500.0,0.00011232,2]
[422544199,1779048644000,-512.15,0.00011232,2]
[422544184,1779048644000,-500.0,0.00011232,2]
[422544174,1779048644000,-500.0,0.00011232,2]
[422544225,1779048644000,-903.76,0.00011232,2]
[422544268,1779048644000,-500.0,0.00011232,2]
[422544227,1779048644000,-500.0,0.00011232,2]
[422544271,1779048644000,-500.0,0.00011232,2]
[422544261,1779048644000,-634.84720872,0.00011232,2]
[422544260,1779048644000,-500.0,0.00011232,2]
[422544262,1779048644000,-694.78,0.00011232,2]
[422544233,1779048644000,-500.0,0.00011232,2]
[422544265,1779048644000,-500.0,0.00011232,2]
[422544266,1779048644000,-500.0,0.00011232,2]
[422544267,1779048644000,-2271.87,0.00011232,2]
[422544263,1779048644000,-2414.56,0.00011232,2]
[422544269,1779048644000,-998.45,0.00011232,2]
[422544270,1779048644000,-693.33,0.00011232,2]
[422544273,1779048644000,-656.18,0.00011232,2]
[422544283,1779048644000,-500.0,0.00011232,2]
[422544284,1779048644000,-1086.76,0.00011232,2]
[422544272,1779048644000,-500.0,0.00011232,2]
[422544275,1779048644000,-1952.25,0.00011232,2]
[422544276,1779048644000,-500.0,0.00011232,2]
[422544274,1779048644000,-819.67,0.00011232,2]
[422544282,1779048644000,-911.39,0.00011232,2]
[422544277,1779048644000,-543.05529041,0.00011232,2]
[422544279,1779048644000,-660.48,0.00011232,2]
[422544278,1779048644000,-500.0,0.00011232,2]
[422544280,1779048644000,-749.9,0.00011232,2]
[422544281,1779048644000,-595.6,0.00011232,2]
[422544285,1779048644000,-500.0,0.00011232,2]
[422544287,1779048644000,-731.5,0.00011232,2]
[422544286,1779048644000,-2790.44,0.00011232,2]
[422544257,1779048644000,-622.46,0.00011232,2]
[422544255,1779048644000,-4983.9,0.00011232,2]
[422544264,1779048644000,-500.0,0.00011232,2]
[422544256,1779048644000,-516.06,0.00011232,2]
[422544226,1779048644000,-794.17,0.00011232,2]
[422544228,1779048644000,-500.0,0.00011232,2]
[422544229,1779048644000,-1879.06,0.00011232,2]
[422544230,1779048644000,-1333.24,0.00011232,2]
[422544232,1779048644000,-894.66,0.00011232,2]
[422544231,1779048644000,-2635.81,0.00011232,2]
[422544235,1779048644000,-500.0,0.00011232,2]
[422544244,1779048644000,-500.0,0.00011232,2]
[422544254,1779048644000,-796.32,0.00011232,2]
[422544246,1779048644000,-500.0,0.00011232,2]
[422544241,1779048644000,-500.0,0.00011232,2]
[422544238,1779048644000,-500.0,0.00011232,2]
[422544236,1779048644000,-500.0,0.00011232,2]
[422544239,1779048644000,-500.0,0.00011232,2]
[422544234,1779048644000,-500.0,0.00011232,2]
[422544243,1779048644000,-507.34,0.00011232,2]
[422544252,1779048644000,-783.08,0.00011232,2]
[422544245,1779048644000,-500.0,0.00011232,2]
[422544253,1779048644000,-500.0,0.00011232,2]
[422544251,1779048644000,-506.22838971,0.00011232,2]
[422544250,1779048644000,-500.0,0.00011232,2]
[422544258,1779048644000,-1337.26,0.00011232,2]
[422544249,1779048644000,-500.0,0.00011232,2]
[422544259,1779048644000,-1342.75,0.00011232,2]
[422544248,1779048644000,-1014.51,0.00011232,2]
[422544240,1779048644000,-400.6968764,0.00011232,2]
[422544242,1779048644000,-1278.21,0.00011232,2]
[422544237,1779048644000,-500.0,0.00011232,2]
[422544247,1779048644000,-500.0,0.00011232,2]
[422544295,1779048645000,-500.0,0.00011232,2]
[422544310,1779048645000,-4791.29,0.00011232,2]
[422544307,1779048645000,-500.0,0.00011232,2]
[422544298,1779048645000,-500.0,0.00011232,2]
[422544294,1779048645000,-500.0,0.00011232,2]
[422544288,1779048645000,-648.61170291,0.00011232,2]
[422544291,1779048645000,-610.6,0.00011232,2]
[422544290,1779048645000,-715.74,0.00011232,2]
[422544292,1779048645000,-4659.56,0.00011232,2]
[422544297,1779048645000,-500.0,0.00011232,2]
[422544296,1779048645000,-700.32,0.00011232,2]
[422544300,1779048645000,-680.83,0.00011232,2]
[422544289,1779048645000,-1473.87,0.00011232,2]
[422544301,1779048645000,-500.0,0.00011232,2]
[422544293,1779048645000,-500.0,0.00011232,2]
[422544305,1779048645000,-500.0,0.00011232,2]
[422544309,1779048645000,-500.0,0.00011232,2]
[422544316,1779048645000,-500.0,0.00011232,2]
[422544312,1779048645000,-500.0,0.00011232,2]
[422544317,1779048645000,-655.19,0.00011232,2]
[422544318,1779048645000,-281.34128053,0.00011232,2]
[422544314,1779048645000,-500.0,0.00011232,2]
[422544313,1779048645000,-500.0,0.00011232,2]
[422544315,1779048645000,-2035.9,0.00011232,2]
[422544304,1779048645000,-500.0,0.00011232,2]
[422544302,1779048645000,-521.38,0.00011232,2]
[422544303,1779048645000,-500.0,0.00011232,2]
[422544306,1779048645000,-500.0,0.00011232,2]
[422544299,1779048645000,-500.0,0.00011232,2]
[422544308,1779048645000,-500.0,0.00011232,2]
[422544311,1779048645000,-500.0,0.00011232,2]
[422544394,1779048647000,-508.13,0.00010958,2]
[422544402,1779048647000,-500.0,0.00011232,2]
[422544406,1779048647000,-2254.56,0.00011232,2]
[422544400,1779048647000,-500.0,0.00011232,2]
[422544398,1779048647000,-500.0,0.00011232,2]
[422544404,1779048647000,-500.0,0.00011232,2]
[422544396,1779048647000,-297.05871947,0.00011232,2]
[422544408,1779048647000,-500.0,0.00011232,2]
[422544412,1779048647000,-500.0,0.00011232,2]
[422544414,1779048647000,-500.0,0.00011232,2]
[422544416,1779048647000,-500.0,0.00011232,2]
[422544418,1779048647000,-232.50455366,0.00011232,2]
[422544417,1779048647000,-1474.37,0.00011232,2]
[422544410,1779048647000,-500.0,0.00011232,2]
[422544419,1779048750000,200.0,0.0001158,120]
[422544421,1779048990000,200.0,0.00014762,120]
[422544422,1779049029000,135.382077,4.38e-05,2]
[422544423,1779049030000,29.235846,4.38e-05,2]
[422544446,1779049110000,200.0,0.0001736,120]
[422544496,1779049650000,200.0,0.00017675,120]
[422544515,1779049831000,-1237.30973074,5.574e-05,2]
[422544518,1779049831000,-641.53184449,5.574e-05,2]
[422544517,1779049831000,-1071.458,5.574e-05,2]
[422544516,1779049831000,-798.71078478,5.574e-05,2]
[422544527,1779049837000,-300.0,5.686e-05,2]
[422544526,1779049837000,-5000.0,5.63e-05,2]
[422544530,1779049837000,-420.0,6.255e-05,2]
[422544528,1779049837000,-5000.0,5.687e-05,2]
[422544525,1779049837000,-1200.0,5.629e-05,2]
[422544522,1779049837000,-845.51462516,5.574e-05,2]
[422544529,1779049837000,-407.67975124,5.773e-05,2]
[422544524,1779049837000,-405.47501483,5.574e-05,2]
[422544536,1779049837000,-443.0,0.00010631,2]
[422544531,1779049837000,-454.61217986,6.679e-05,2]
[422544533,1779049837000,-554.44446169,9.773e-05,2]
[422544534,1779049837000,-2687.58851647,0.00010631,2]
[422544537,1779049837000,-187.08863118,0.00010658,2]
[422544540,1779049837000,-160.0,0.00010732,2]
[422544539,1779049837000,-161.67668242,0.00010732,2]
[422544538,1779049837000,-187.08863118,0.00010725,2]
[422544532,1779049837000,-481.06210647,7.773e-05,2]
[422544535,1779049837000,-185.0,0.00010631,2]
[422544585,1779049838000,-500.0,0.00010958,2]
[422544586,1779049838000,-500.0,0.00010958,2]
[422544587,1779049838000,-500.0,0.00010958,2]
[422544583,1779049838000,-1560.65,0.00010958,2]
[422544584,1779049838000,-348.67722124,0.00010958,2]
[422544577,1779049838000,-3010.3665,0.00010958,2]
[422544579,1779049838000,-666.81,0.00010958,2]
[422544580,1779049838000,-542.72339246,0.00010958,2]
[422544582,1779049838000,-637.90206516,0.00010958,2]
[422544578,1779049838000,-3010.3665,0.00010958,2]
[422544575,1779049838000,-187.08863118,0.00010791,2]
[422544574,1779049838000,-640590.69918521,0.00010758,2]
[422544581,1779049838000,-500.0,0.00010958,2]
[422544592,1779049838000,-500.0,0.00010958,2]
[422544593,1779049838000,-500.0,0.00010958,2]
[422544590,1779049838000,-500.0,0.00010958,2]
[422544594,1779049838000,-500.0,0.00010958,2]
[422544591,1779049838000,-500.0,0.00010958,2]
[422544589,1779049838000,-646.49,0.00010958,2]
[422544595,1779049838000,-609.04,0.00010958,2]
[422544597,1779049838000,-450.99949132,0.00010958,2]
[422544596,1779049838000,-500.0,0.00010958,2]
[422544599,1779049838000,-500.0,0.00010958,2]
[422544606,1779049838000,-1799.69,0.00010958,2]
[422544601,1779049838000,-500.0,0.00010958,2]
[422544598,1779049838000,-500.0,0.00010958,2]
[422544608,1779049838000,-500.0,0.00010958,2]
[422544576,1779049838000,-187.08863118,0.00010858,2]
[422544588,1779049838000,-500.0,0.00010958,2]
[422544573,1779049838000,-43289.95318546,0.00010758,2]
[422544544,1779049838000,-356.03814886,0.00010757,2]
[422544568,1779049838000,-500.0,0.00010757,2]
[422544541,1779049838000,-160.0,0.00010732,2]
[422544546,1779049838000,-500.0,0.00010757,2]
[422544542,1779049838000,-500.0,0.00010757,2]
[422544600,1779049838000,-1283.66,0.00010958,2]
[422544543,1779049838000,-500.0,0.00010757,2]
[422544545,1779049838000,-500.0,0.00010757,2]
[422544548,1779049838000,-500.0,0.00010757,2]
[422544558,1779049838000,-500.0,0.00010757,2]
[422544559,1779049838000,-500.0,0.00010757,2]
[422544549,1779049838000,-500.0,0.00010757,2]
[422544547,1779049838000,-500.0,0.00010757,2]
[422544552,1779049838000,-500.0,0.00010757,2]
[422544551,1779049838000,-500.0,0.00010757,2]
[422544550,1779049838000,-500.0,0.00010757,2]
[422544566,1779049838000,-500.0,0.00010757,2]
[422544555,1779049838000,-500.0,0.00010757,2]
[422544553,1779049838000,-500.0,0.00010757,2]
[422544554,1779049838000,-500.0,0.00010757,2]
[422544557,1779049838000,-500.0,0.00010757,2]
[422544561,1779049838000,-500.0,0.00010757,2]
[422544571,1779049838000,-233.03169036,0.00010757,2]
[422544565,1779049838000,-500.0,0.00010757,2]
[422544563,1779049838000,-500.0,0.00010757,2]
[422544572,1779049838000,-196.411,0.00010758,2]
[422544564,1779049838000,-500.0,0.00010757,2]
[422544560,1779049838000,-500.0,0.00010757,2]
[422544562,1779049838000,-500.0,0.00010757,2]
[422544569,1779049838000,-500.0,0.00010757,2]
[422544567,1779049838000,-500.0,0.00010757,2]
[422544570,1779049838000,-500.0,0.00010757,2]
[422544556,1779049838000,-500.0,0.00010757,2]
[422544602,1779049838000,-500.0,0.00010958,2]
[422544607,1779049838000,-500.0,0.00010958,2]
[422544605,1779049838000,-500.0,0.00010958,2]
[422544640,1779049838000,-500.0,0.00010958,2]
[422544641,1779049838000,-500.0,0.00010958,2]
[422544651,1779049838000,-2254.48,0.00010958,2]
[422544642,1779049838000,-500.0,0.00010958,2]
[422544637,1779049838000,-213.64397218,0.00010958,2]
[422544644,1779049838000,-500.0,0.00010958,2]
[422544645,1779049838000,-500.0,0.00010958,2]
[422544646,1779049838000,-500.0,0.00010958,2]
[422544643,1779049838000,-584.24,0.00010958,2]
[422544647,1779049838000,-500.0,0.00010958,2]
[422544654,1779049838000,-500.0,0.00010958,2]
[422544653,1779049838000,-500.0,0.00010958,2]
[422544652,1779049838000,-3117.55,0.00010958,2]
[422544659,1779049838000,-500.0,0.00010958,2]
[422544655,1779049838000,-500.0,0.00010958,2]
[422544661,1779049838000,-500.0,0.00010958,2]
[422544663,1779049838000,-500.0,0.00010958,2]
[422544656,1779049838000,-500.0,0.00010958,2]
[422544665,1779049838000,-500.0,0.00010958,2]
[422544657,1779049838000,-784.32,0.00010958,2]
[422544658,1779049838000,-500.0,0.00010958,2]
[422544660,1779049838000,-500.0,0.00010958,2]
[422544662,1779049838000,-852.2,0.00010958,2]
[422544667,1779049838000,-500.0,0.00010958,2]
[422544668,1779049838000,-1154.74,0.00010958,2]
[422544666,1779049838000,-1473.71,0.00010958,2]
[422544669,1779049838000,-500.0,0.00010958,2]
[422544670,1779049838000,-216.84781744,0.00010958,2]
[422544603,1779049838000,-769.65,0.00010958,2]
[422544639,1779049838000,-500.0,0.00010958,2]
[422544649,1779049838000,-500.0,0.00010958,2]
[422544664,1779049838000,-500.0,0.00010958,2]
[422544648,1779049838000,-1949.5,0.00010958,2]
[422544638,1779049838000,-500.0,0.00010958,2]
[422544610,1779049838000,-500.0,0.00010958,2]
[422544620,1779049838000,-961.94,0.00010958,2]
[422544621,1779049838000,-1298.56,0.00010958,2]
[422544615,1779049838000,-503.96322022,0.00010958,2]
[422544613,1779049838000,-500.0,0.00010958,2]
[422544622,1779049838000,-500.0,0.00010958,2]
[422544612,1779049838000,-500.0,0.00010958,2]
[422544609,1779049838000,-500.0,0.00010958,2]
[422544619,1779049838000,-570.59,0.00010958,2]
[422544611,1779049838000,-500.0,0.00010958,2]
[422544614,1779049838000,-500.0,0.00010958,2]
[422544616,1779049838000,-500.0,0.00010958,2]
[422544617,1779049838000,-500.0,0.00010958,2]
[422544618,1779049838000,-500.0,0.00010958,2]
[422544604,1779049838000,-500.0,0.00010958,2]
[422544625,1779049838000,-500.0,0.00010958,2]
[422544624,1779049838000,-793.03,0.00010958,2]
[422544631,1779049838000,-500.0,0.00010958,2]
[422544633,1779049838000,-500.0,0.00010958,2]
[422544632,1779049838000,-500.0,0.00010958,2]
[422544628,1779049838000,-642.9,0.00010958,2]
[422544629,1779049838000,-500.0,0.00010958,2]
[422544630,1779049838000,-712.21,0.00010958,2]
[422544650,1779049838000,-500.0,0.00010958,2]
[422544635,1779049838000,-665.76,0.00010958,2]
[422544623,1779049838000,-500.0,0.00010958,2]
[422544634,1779049838000,-500.0,0.00010958,2]
[422544627,1779049838000,-2182.71,0.00010958,2]
[422544626,1779049838000,-500.0,0.00010958,2]
[422544636,1779049838000,-500.0,0.00010958,2]
[422544723,1779049839000,-766.9,0.00010958,2]
[422544720,1779049839000,-691.03,0.00010958,2]
[422544721,1779049839000,-677.22,0.00010958,2]
[422544722,1779049839000,-1096.81,0.00010958,2]
[422544705,1779049839000,-4739.22,0.00010958,2]
[422544710,1779049839000,-861.67,0.00010958,2]
[422544712,1779049839000,-500.0,0.00010958,2]
[422544713,1779049839000,-500.0,0.00010958,2]
[422544719,1779049839000,-500.0,0.00010958,2]
[422544709,1779049839000,-771.63,0.00010958,2]
[422544677,1779049839000,-500.0,0.00010958,2]
[422544711,1779049839000,-665.36,0.00010958,2]
[422544714,1779049839000,-1230.27,0.00010958,2]
[422544718,1779049839000,-500.0,0.00010958,2]
[422544733,1779049839000,-2312.01,0.00010958,2]
[422544715,1779049839000,-500.0,0.00010958,2]
[422544716,1779049839000,-500.0,0.00010958,2]
[422544728,1779049839000,-619.62316326,0.00010958,2]
[422544724,1779049839000,-500.0,0.00010958,2]
[422544732,1779049839000,-1956.35,0.00010958,2]
[422544726,1779049839000,-1831.23,0.00010958,2]
[422544727,1779049839000,-980.62,0.00010958,2]
[422544734,1779049839000,-500.0,0.00010958,2]
[422544729,1779049839000,-1285.93,0.00010958,2]
[422544730,1779049839000,-759.49,0.00010958,2]
[422544731,1779049839000,-729.08,0.00010958,2]
[422544735,1779049839000,-662.04,0.00010958,2]
[422544737,1779049839000,-500.0,0.00010958,2]
[422544706,1779049839000,-500.0,0.00010958,2]
[422544717,1779049839000,-500.0,0.00010958,2]
[422544702,1779049839000,-500.0,0.00010958,2]
[422544678,1779049839000,-500.0,0.00010958,2]
[422544708,1779049839000,-500.0,0.00010958,2]
[422544679,1779049839000,-500.0,0.00010958,2]
[422544674,1779049839000,-1710.53,0.00010958,2]
[422544673,1779049839000,-500.0,0.00010958,2]
[422544672,1779049839000,-500.0,0.00010958,2]
[422544671,1779049839000,-715.94,0.00010958,2]
[422544675,1779049839000,-500.0,0.00010958,2]
[422544676,1779049839000,-500.0,0.00010958,2]
[422544680,1779049839000,-1234.42,0.00010958,2]
[422544683,1779049839000,-2516.73,0.00010958,2]
[422544694,1779049839000,-703.88,0.00010958,2]
[422544682,1779049839000,-500.0,0.00010958,2]
[422544689,1779049839000,-601.93,0.00010958,2]
[422544685,1779049839000,-500.0,0.00010958,2]
[422544687,1779049839000,-713.82,0.00010958,2]
[422544703,1779049839000,-500.0,0.00010958,2]
[422544691,1779049839000,-500.0,0.00010958,2]
[422544681,1779049839000,-500.0,0.00010958,2]
[422544686,1779049839000,-500.0,0.00010958,2]
[422544736,1779049839000,-500.0,0.00010958,2]
[422544684,1779049839000,-530.01,0.00010958,2]
[422544690,1779049839000,-861.77,0.00010958,2]
[422544693,1779049839000,-500.0,0.00010958,2]
[422544697,1779049839000,-588.87,0.00010958,2]
[422544695,1779049839000,-500.0,0.00010958,2]
[422544698,1779049839000,-500.0,0.00010958,2]
[422544701,1779049839000,-500.0,0.00010958,2]
[422544707,1779049839000,-870.12,0.00010958,2]
[422544696,1779049839000,-939.76,0.00010958,2]
[422544700,1779049839000,-500.0,0.00010958,2]
[422544699,1779049839000,-1000.0,0.00010958,2]
[422544692,1779049839000,-687.15,0.00010958,2]
[422544738,1779049839000,-500.0,0.00010958,2]
[422544688,1779049839000,-667.16,0.00010958,2]
[422544739,1779049839000,-500.0,0.00010958,2]
[422544790,1779049839000,-500.0,0.00010958,2]
[422544784,1779049839000,-500.0,0.00010958,2]
[422544779,1779049839000,-500.0,0.00010958,2]
[422544792,1779049839000,-500.0,0.00010958,2]
[422544780,1779049839000,-500.0,0.00010958,2]
[422544788,1779049839000,-1489.65,0.00010958,2]
[422544785,1779049839000,-500.0,0.00010958,2]
[422544783,1779049839000,-480.50240614,0.00010958,2]
[422544787,1779049839000,-500.0,0.00010958,2]
[422544781,1779049839000,-561.82,0.00010958,2]
[422544789,1779049839000,-1396.94,0.00010958,2]
[422544782,1779049839000,-685.79,0.00010958,2]
[422544786,1779049839000,-500.0,0.00010958,2]
[422544807,1779049839000,-500.0,0.00010958,2]
[422544809,1779049839000,-500.0,0.00010958,2]
[422544801,1779049839000,-500.0,0.00010958,2]
[422544794,1779049839000,-500.0,0.00010958,2]
[422544740,1779049839000,-1045.46,0.00010958,2]
[422544822,1779049839000,-2231.63,0.00010958,2]
[422544821,1779049839000,-602.83987225,0.00010958,2]
[422544824,1779049839000,-1419.78,0.00010958,2]
[422544813,1779049839000,-500.0,0.00010958,2]
[422544799,1779049839000,-500.0,0.00010958,2]
[422544775,1779049839000,-500.0,0.00010958,2]
[422544797,1779049839000,-500.0,0.00010958,2]
[422544817,1779049839000,-518.8,0.00010958,2]
[422544815,1779049839000,-500.0,0.00010958,2]
[422544803,1779049839000,-500.0,0.00010958,2]
[422544805,1779049839000,-1251.05,0.00010958,2]
[422544795,1779049839000,-782.22,0.00010958,2]
[422544810,1779049839000,-500.0,0.00010958,2]
[422544819,1779049839000,-691.06,0.00010958,2]
[422544772,1779049839000,-500.0,0.00010958,2]
[422544704,1779049839000,-500.0,0.00010958,2]
[422544771,1779049839000,-500.0,0.00010958,2]
[422544751,1779049839000,-2135.74,0.00010958,2]
[422544752,1779049839000,-500.0,0.00010958,2]
[422544750,1779049839000,-4455.56,0.00010958,2]
[422544741,1779049839000,-698.22,0.00010958,2]
[422544742,1779049839000,-646.67,0.00010958,2]
[422544746,1779049839000,-616.78,0.00010958,2]
[422544744,1779049839000,-500.0,0.00010958,2]
[422544743,1779049839000,-1417.87,0.00010958,2]
[422544745,1779049839000,-647.11,0.00010958,2]
[422544749,1779049839000,-545.97,0.00010958,2]
[422544747,1779049839000,-635.23,0.00010958,2]
[422544748,1779049839000,-500.0,0.00010958,2]
[422544753,1779049839000,-500.0,0.00010958,2]
[422544755,1779049839000,-2672.76,0.00010958,2]
[422544759,1779049839000,-500.0,0.00010958,2]
[422544777,1779049839000,-642.26,0.00010958,2]
[422544754,1779049839000,-683.62,0.00010958,2]
[422544776,1779049839000,-919.52,0.00010958,2]
[422544769,1779049839000,-4585.39,0.00010958,2]
[422544773,1779049839000,-500.0,0.00010958,2]
[422544774,1779049839000,-500.0,0.00010958,2]
[422544762,1779049839000,-559.12,0.00010958,2]
[422544767,1779049839000,-602.98,0.00010958,2]
[422544761,1779049839000,-601.38,0.00010958,2]
[422544770,1779049839000,-500.0,0.00010958,2]
[422544768,1779049839000,-561.91,0.00010958,2]
[422544763,1779049839000,-476.95037391,0.00010958,2]
[422544764,1779049839000,-500.0,0.00010958,2]
[422544758,1779049839000,-151.55807147,0.00010958,2]
[422544757,1779049839000,-500.0,0.00010958,2]
[422544760,1779049839000,-697.76,0.00010958,2]
[422544766,1779049839000,-500.0,0.00010958,2]
[422544904,1779049840000,-4432.71,0.00010958,2]
[422544908,1779049840000,-1459.55,0.00010958,2]
[422544902,1779049840000,-3660.05,0.00010958,2]
[422544910,1779049840000,-620.59,0.00010958,2]
[422544906,1779049840000,-824.11,0.00010958,2]
[422544877,1779049840000,-500.0,0.00010958,2]
[422544900,1779049840000,-4267.59,0.00010958,2]
[422544896,1779049840000,-3734.06,0.00010958,2]
[422544894,1779049840000,-209.0532003,0.00010958,2]
[422544892,1779049840000,-500.0,0.00010958,2]
[422544890,1779049840000,-681.84,0.00010958,2]
[422544912,1779049840000,-500.0,0.00010958,2]
[422544898,1779049840000,-500.0,0.00010958,2]
[422544914,1779049840000,-583.81,0.00010958,2]
[422544922,1779049840000,-8580.15,0.00010958,2]
[422544920,1779049840000,-3475.25,0.00010958,2]
[422544940,1779049840000,-329.37458203,0.00010958,2]
[422544926,1779049840000,-1098.89,0.00010958,2]
[422544932,1779049840000,-7430.89,0.00010958,2]
[422544935,1779049840000,-741.12,0.00010958,2]
[422544934,1779049840000,-2720.69,0.00010958,2]
[422544937,1779049840000,-3049.13,0.00010958,2]
[422544928,1779049840000,-638.83,0.00010958,2]
[422544943,1779049840000,-500.0,0.00010958,2]
[422544941,1779049840000,-8004.04,0.00010958,2]
[422544946,1779049840000,-3187.79,0.00010958,2]
[422544930,1779049840000,-748.41,0.00010958,2]
[422544924,1779049840000,-12474.52,0.00010958,2]
[422544879,1779049840000,-500.0,0.00010958,2]
[422544916,1779049840000,-3821.36,0.00010958,2]
[422544875,1779049840000,-513.77,0.00010958,2]
[422544848,1779049840000,-500.0,0.00010958,2]
[422544873,1779049840000,-500.0,0.00010958,2]
[422544842,1779049840000,-500.0,0.00010958,2]
[422544838,1779049840000,-500.0,0.00010958,2]
[422544835,1779049840000,-500.0,0.00010958,2]
[422544833,1779049840000,-466.58250108,0.00010958,2]
[422544826,1779049840000,-500.0,0.00010958,2]
[422544840,1779049840000,-500.0,0.00010958,2]
[422544830,1779049840000,-500.0,0.00010958,2]
[422544837,1779049840000,-4859.03,0.00010958,2]
[422544828,1779049840000,-500.0,0.00010958,2]
[422544832,1779049840000,-607.11,0.00010958,2]
[422544844,1779049840000,-1860.64,0.00010958,2]
[422544846,1779049840000,-2348.07,0.00010958,2]
[422544852,1779049840000,-999.59,0.00010958,2]
[422544858,1779049840000,-858.38,0.00010958,2]
[422544854,1779049840000,-10926.76,0.00010958,2]
[422544949,1779049840000,-500.0,0.00010958,2]
[422544850,1779049840000,-3843.7,0.00010958,2]
[422544856,1779049840000,-500.0,0.00010958,2]
[422544860,1779049840000,-500.0,0.00010958,2]
[422544862,1779049840000,-2280.13,0.00010958,2]
[422544867,1779049840000,-500.0,0.00010958,2]
[422544866,1779049840000,-500.0,0.00010958,2]
[422544864,1779049840000,-500.0,0.00010958,2]
[422544869,1779049840000,-872.39,0.00010958,2]
[422544871,1779049840000,-665.99,0.00010958,2]
[422544881,1779049840000,-500.0,0.00010958,2]